bitfinex/quotes_BTCUSD_20250328
["timestamp","ask_amount","ask_price","bid_price","bid_amount"]
[1743195807051,0.0173085,83919.0,83918.0,0.2393121]
[1743195807261,0.0173085,83919.0,83918.0,0.3334281]
[1743195808036,0.0193085,83919.0,83918.0,0.3334281]
[1743195808452,0.0173085,83919.0,83918.0,0.3334281]
[1743195808770,0.0193085,83919.0,83918.0,0.3334281]
[1743195809000,0.0213085,83919.0,83918.0,0.3334281]
[1743195810202,0.0043376,83919.0,83918.0,0.3334281]
[1743195813372,0.03965079,83919.0,83918.0,0.3334281]
[1743195816015,0.02303491,83919.0,83918.0,0.3334281]
[1743195818952,0.0043376,83919.0,83918.0,0.3334281]
[1743195819557,0.0043376,83919.0,83918.0,0.2512281]
[1743195822614,0.0043376,83919.0,83918.0,0.3785281]
[1743195823768,0.0023376,83919.0,83918.0,0.3785281]
[1743195824279,0.0023376,83919.0,83918.0,0.40085918]
[1743195824935,0.0003376,83919.0,83918.0,0.40085918]
[1743195827333,0.0003376,83919.0,83918.0,0.41540003]
[1743195829026,0.0003376,83919.0,83918.0,0.40085918]
[1743195835517,0.0003376,83919.0,83918.0,0.27355918]
[1743195852093,0.0003376,83919.0,83918.0,0.28046187]
[1743195858188,0.0003376,83919.0,83918.0,0.28146187]
[1743195858429,0.0003376,83919.0,83918.0,0.40506187]
[1743195858602,6e-07,83919.0,83918.0,0.95136036]
[1743195859100,6e-07,83919.0,83918.0,0.99164643]
[1743195859304,6e-07,83919.0,83918.0,0.94936036]
[1743195859900,6e-07,83919.0,83918.0,0.94536036]
[1743195860039,6e-07,83919.0,83918.0,0.94636036]
[1743195860268,6e-07,83919.0,83918.0,0.95136036]
[1743195863114,6e-07,83919.0,83918.0,0.95613636]
[1743195865391,6e-07,83919.0,83918.0,0.95113636]
[1743195865607,6e-07,83919.0,83918.0,0.95013636]
[1743195865883,0.0020006,83919.0,83918.0,0.33833787]
[1743195866028,0.0020006,83919.0,83918.0,0.28846187]
[1743195866845,0.0020006,83919.0,83918.0,0.38150272]
[1743195867078,0.0020006,83919.0,83918.0,0.42660272]
[1743195867554,0.0020006,83919.0,83918.0,0.41970003]
[1743195868569,0.0020006,83919.0,83918.0,0.53395767]
[1743195872497,0.0020006,83919.0,83918.0,1.10143767]
[1743195873559,0.0020006,83919.0,83918.0,0.90868003]
[1743195876493,0.0020006,83919.0,83918.0,0.86358003]
[1743195880086,0.0020006,83919.0,83918.0,0.84903918]
[1743195883596,0.0020006,83919.0,83918.0,0.84920798]
[1743195886712,0.0020006,83919.0,83918.0,0.28172798]
[1743195889773,0.0020006,83919.0,83918.0,0.37496883]
[1743195891584,0.0020006,83919.0,83918.0,0.48922647]
[1743195892411,0.0020006,83919.0,83918.0,0.52651195]
[1743195893276,0.0020006,83919.0,83918.0,0.48922647]
[1743195894473,0.0020006,83919.0,83918.0,0.62506647]
[1743195901215,0.0020006,83919.0,83918.0,0.48922647]
[1743195901418,0.0020006,83919.0,83918.0,0.28172798]
[1743195905377,9.1e-07,83922.0,83921.0,0.31707485]
[1743195905506,9.1e-07,83922.0,83921.0,0.46862902]
[1743195906335,9.1e-07,83922.0,83921.0,0.4909601]
[1743195906589,9.1e-07,83922.0,83921.0,0.4859601]
[1743195906798,9.1e-07,83922.0,83921.0,0.32440246]
[1743195906966,9.1e-07,83922.0,83921.0,0.2940152]
[1743195907123,9.1e-07,83922.0,83921.0,0.28547435]
[1743195907845,9.1e-07,83922.0,83921.0,0.29147435]
[1743195908356,0.11598097,83940.0,83937.0,0.238271]
[1743195908545,0.01519623,83939.0,83937.0,0.23970197]
[1743195908754,0.01519623,83939.0,83937.0,0.23970397]
[1743195909572,0.01519623,83939.0,83937.0,0.00143097]
[1743195909573,0.25346423,83939.0,83937.0,0.00143097]
[1743195909750,0.01519623,83939.0,83937.0,0.24170397]
[1743195911244,0.25346523,83939.0,83937.0,0.00543097]
[1743195911474,0.1286,83938.0,83937.0,0.24370397]
[1743195911624,0.14386719,83938.0,83937.0,0.00343097]
[1743195911809,0.14386719,83938.0,83937.0,0.00543097]
[1743195912294,0.38213819,83938.0,83937.0,0.00543097]
[1743195912522,0.38213819,83938.0,83937.0,0.00143097]
[1743195912712,0.14386719,83938.0,83937.0,0.02880801]
[1743195913774,0.38213819,83938.0,83937.0,0.02880801]
[1743195913978,0.14386719,83938.0,83937.0,0.02880801]
[1743195914516,0.38213819,83938.0,83937.0,0.02880801]
[1743195914815,0.39405119,83938.0,83937.0,0.02880801]
[1743195916957,0.38213819,83938.0,83937.0,0.02880801]
[1743195918433,0.38247579,83938.0,83937.0,0.02880801]
[1743195918642,1.57536667,83938.0,83937.0,0.02880801]
[1743195918803,1.57536667,83938.0,83937.0,0.02781871]
[1743195919868,1.57536667,83938.0,83937.0,0.00544167]
[1743195922779,1.59405898,83938.0,83937.0,0.00544167]
[1743195924571,1.59405898,83938.0,83937.0,0.00344167]
[1743195924763,1.59405898,83938.0,83937.0,0.00044167]
[1743195925233,1.59505898,83938.0,83937.0,0.00044167]
[1743195926589,1.54815898,83938.0,83937.0,0.00044167]
[1743195931466,1.54815898,83938.0,83937.0,0.00061047]
[1743195935583,1.52946667,83938.0,83937.0,0.00061047]
[1743195940059,1.5481601,83938.0,83937.0,0.00061047]
[1743195942210,0.36718222,83938.0,83937.0,0.00061047]
[1743195944565,0.82255199,83938.0,83937.0,0.00061047]
[1743195944979,0.80385856,83938.0,83937.0,0.00061047]
[1743195945851,0.80285856,83938.0,83937.0,0.00061047]
[1743195946055,0.69568879,83938.0,83937.0,0.00061047]
[1743195946272,0.69768879,83938.0,83937.0,0.00061047]
[1743195947969,0.71638548,83938.0,83937.0,0.00061047]
[1743195948987,0.72537632,83938.0,83937.0,0.00061047]
[1743195953524,0.70667963,83938.0,83937.0,0.00061047]
[1743195954644,0.79086514,83938.0,83937.0,0.00061047]
[1743195956674,0.70667963,83938.0,83937.0,0.00061047]
[1743195958061,0.72537445,83938.0,83937.0,0.00061047]
[1743195962071,0.59547445,83938.0,83937.0,0.00061047]
[1743195962482,0.48317261,83938.0,83937.0,0.08261047]
[1743195962699,0.42144361,83938.0,83937.0,0.08261047]
[1743195963633,0.41944361,83938.0,83937.0,0.00061047]
[1743195964973,0.42144361,83938.0,83937.0,0.00061047]
[1743195965284,0.40274879,83938.0,83937.0,0.00061047]
[1743195965503,0.41944132,83938.0,83937.0,0.00061047]
[1743195965692,0.42144132,83938.0,83937.0,0.00061047]
[1743195970371,0.17125732,83938.0,83937.0,0.23888347]
[1743195970617,0.17125732,83938.0,83937.0,0.23987327]
[1743195971636,0.03629732,83938.0,83937.0,0.38268627]
[1743195971838,0.02103013,83938.0,83937.0,0.38268627]
[1743195972591,0.01903013,83938.0,83937.0,0.3947555]
[1743195973006,0.02003013,83938.0,83937.0,0.3947555]
[1743195974205,0.01903013,83938.0,83937.0,0.3947555]
[1743195974681,0.02003013,83938.0,83937.0,0.3947555]
[1743195975024,0.01903013,83938.0,83937.0,0.3967555]
[1743195975224,0.01903013,83938.0,83937.0,0.38468627]
[1743195975428,0.01903013,83938.0,83937.0,0.38668627]
[1743195975663,0.01903013,83938.0,83937.0,0.39856035]
[1743195976077,0.01903013,83938.0,83937.0,0.39739744]
[1743195979166,0.01903013,83938.0,83937.0,0.39756624]
[1743195980714,0.0003376,83938.0,83937.0,0.41210709]
[1743195981563,0.0003376,83938.0,83937.0,0.41010709]
[1743195981864,0.0003376,83938.0,83937.0,0.40810709]
[1743195982056,0.0003376,83938.0,83937.0,0.41310709]
[1743195982261,0.0003376,83938.0,83937.0,0.41910709]
[1743195982918,0.0003376,83938.0,83937.0,0.53336473]
[1743195983716,0.0003376,83938.0,83937.0,0.55719502]
[1743195985012,0.0003376,83938.0,83937.0,0.56407308]
[1743195986567,6e-07,83938.0,83937.0,0.56407308]
[1743195986994,2e-07,83940.0,83939.0,0.38812185]
[1743195987196,2e-07,83940.0,83939.0,0.50237949]
[1743195988132,2e-07,83940.0,83939.0,0.50837949]
[1743195988525,2e-07,83940.0,83939.0,0.51437949]
[1743195989478,2e-07,83940.0,83939.0,0.51937949]
[1743195992688,2e-07,83940.0,83939.0,0.52625755]
[1743195996712,1e-06,83945.0,83944.0,0.385466]
[1743195996906,8e-07,83953.0,83952.0,0.39998285]
[1743195997113,8e-07,83953.0,83952.0,0.65011809]
[1743195997922,8e-07,83953.0,83952.0,0.65921455]
[1743195998739,8e-07,83953.0,83952.0,0.66609261]
[1743195999341,8e-07,83953.0,83952.0,0.67209261]
[1743195999551,8e-07,83953.0,83952.0,0.67809261]
[1743196006173,8.7e-07,83963.0,83962.0,0.01191]
[1743196006371,8.7e-07,83963.0,83962.0,0.51051377]
[1743196006579,0.0796376,83994.0,83993.0,0.25002]
[1743196006926,0.09093328,83994.0,83993.0,0.25002]
[1743196008022,0.09137788,83994.0,83993.0,0.25002]
[1743196011606,0.09137788,83994.0,83993.0,0.2510057]
[1743196011986,0.09137788,83994.0,83993.0,0.2391007]
[1743196014740,0.01207788,83994.0,83993.0,0.2391007]
[1743196018122,0.01207788,83994.0,83993.0,0.2510057]
[1743196021230,0.0007822,83994.0,83993.0,0.2510057]
[1743196021429,0.0007822,83994.0,83993.0,0.2391007]
[1743196023535,0.25018988,83994.0,83993.0,0.0009857]
[1743196023859,0.01207788,83994.0,83993.0,0.0009857]
[1743196024797,0.01207788,83994.0,83993.0,0.2391007]
[1743196025276,0.01207788,83994.0,83993.0,0.2510057]
[1743196028401,0.03075705,83994.0,83993.0,0.2510057]
[1743196028580,0.01207788,83994.0,83993.0,0.2510057]
[1743196033928,0.01207788,83994.0,83993.0,0.2520057]
[1743196034553,0.0007822,83994.0,83993.0,0.2520057]
[1743196035115,0.0007822,83994.0,83993.0,0.2510057]
[1743196035657,0.0007822,83994.0,83993.0,0.2520057]
[1743196035797,0.0007822,83994.0,83993.0,0.2510057]
[1743196036136,0.0007822,83994.0,83993.0,0.2570057]
[1743196036898,0.0007822,83994.0,83993.0,0.26387627]
[1743196037099,0.0007822,83994.0,83993.0,0.26187627]
[1743196037510,0.0007822,83994.0,83993.0,0.26487627]
[1743196041515,0.01945902,83994.0,83993.0,0.26487627]
[1743196045124,0.0007822,83994.0,83993.0,0.26487627]
[1743196046983,0.0007822,83994.0,83993.0,0.35461712]
[1743196047784,0.0007822,83994.0,83993.0,0.35161712]
[1743196048146,0.0007822,83994.0,83993.0,0.35561712]
[1743196048721,0.0007822,83994.0,83993.0,0.35161712]
[1743196048967,0.0007822,83994.0,83993.0,0.35561712]
[1743196050637,0.0007822,83994.0,83993.0,0.35161712]
[1743196050837,0.0007822,83994.0,83993.0,0.35561712]
[1743196051468,0.0007822,83994.0,83993.0,0.35161712]
[1743196051671,0.0007822,83994.0,83993.0,0.35661712]
[1743196051872,0.0007822,83994.0,83993.0,0.35261712]
[1743196052325,0.0007822,83994.0,83993.0,0.35661712]
[1743196053085,0.0007822,83994.0,83993.0,0.35261712]
[1743196053594,0.0007822,83994.0,83993.0,0.34761712]
[1743196053959,0.0007822,83994.0,83993.0,0.35261712]
[1743196054356,0.0007822,83994.0,83993.0,0.46187476]
[1743196054698,0.0007822,83994.0,83993.0,0.46687476]
[1743196055155,0.0007822,83994.0,83993.0,0.47187476]
[1743196055352,0.0007822,83994.0,83993.0,0.46687476]
[1743196055681,0.0007822,83994.0,83993.0,0.47785715]
[1743196056028,0.0007822,83994.0,83993.0,0.48385715]
[1743196057662,0.0007822,83994.0,83993.0,0.47885715]
[1743196057863,0.0007822,83994.0,83993.0,0.47387476]
[1743196058059,0.0007822,83994.0,83993.0,0.46787476]
[1743196058468,0.0007822,83994.0,83993.0,0.47387476]
[1743196059078,8e-07,83999.0,83998.0,0.142205]
[1743196059278,8e-07,83999.0,83998.0,0.51491753]
[1743196059480,8e-07,83999.0,83998.0,0.51410349]
[1743196060465,8e-07,83999.0,83998.0,0.52010349]
[1743196060886,8e-07,83999.0,83998.0,0.5291448]
[1743196061087,8e-07,83999.0,83998.0,0.5231448]
[1743196061268,8e-07,83999.0,83998.0,0.53001537]
[1743196061464,0.0001583,84003.0,84002.0,0.254993]
[1743196061668,0.0001583,84003.0,84002.0,0.60204489]
[1743196062341,0.0001583,84003.0,84002.0,0.62071889]
[1743196062764,0.0001583,84003.0,84002.0,0.62758946]
[1743196063470,0.0001583,84003.0,84002.0,0.63958946]
[1743196063817,0.0001583,84003.0,84002.0,0.50579097]
[1743196064039,0.0001583,84003.0,84002.0,0.48711697]
[1743196064390,0.0001583,84003.0,84002.0,0.35235697]
[1743196068515,0.0001583,84003.0,84002.0,0.36689782]
[1743196068915,0.0001583,84003.0,84002.0,0.48115546]
[1743196070276,0.0001583,84003.0,84002.0,0.5399264]
[1743196073393,0.0001583,84003.0,84002.0,1.1068864]
[1743196075437,0.0001583,84003.0,84002.0,1.09591546]
[1743196076640,3e-07,84003.0,84002.0,1.09591546]
[1743196076939,3e-07,84003.0,84002.0,1.10091546]
[1743196077637,3e-07,84003.0,84002.0,1.09491546]
[1743196077847,3e-07,84003.0,84002.0,1.10091546]
[1743196078001,3e-07,84003.0,84002.0,1.09491546]
[1743196078204,3e-07,84003.0,84002.0,1.10091546]
[1743196078605,9e-07,84006.0,84005.0,0.379185]
[1743196078848,9e-07,84006.0,84005.0,0.67096389]
[1743196079057,9e-07,84006.0,84005.0,0.87016389]
[1743196080168,0.0003376,84024.0,84005.0,0.87016389]
[1743196080369,0.00047151,84018.0,84017.0,0.34377575]
[1743196080570,0.00047151,84018.0,84017.0,0.59275339]
[1743196081131,0.00047151,84018.0,84017.0,0.59752439]
[1743196081531,0.00047151,84018.0,84017.0,0.60352439]
[1743196081742,0.00047151,84018.0,84017.0,0.61039496]
[1743196082140,0.00047151,84018.0,84017.0,0.61639496]
[1743196082844,0.00047151,84018.0,84017.0,0.61039496]
[1743196083219,0.00047151,84018.0,84017.0,0.61639496]
[1743196083721,0.00047151,84018.0,84017.0,0.61039496]
[1743196083914,0.00047151,84018.0,84017.0,0.62136971]
[1743196084219,0.00047151,84018.0,84017.0,0.41434971]
[1743196084447,0.00047151,84018.0,84017.0,0.30009207]
[1743196084923,0.00047151,84018.0,84017.0,0.41434971]
[1743196088136,0.000338,84036.0,84017.0,0.41434971]
[1743196088137,0.12428154,84046.0,84042.0,0.237973]
[1743196088466,0.00013311,84046.0,84045.0,0.249865]
[1743196090765,0.00013311,84046.0,84045.0,0.250865]
[1743196092980,0.00013311,84046.0,84045.0,0.249865]
[1743196093484,0.00013311,84046.0,84045.0,0.251865]
[1743196094076,0.00013311,84046.0,84045.0,0.252865]
[1743196096116,0.00013311,84046.0,84045.0,0.250865]
[1743196096492,0.00013311,84046.0,84045.0,0.253865]
[1743196097119,0.00013311,84046.0,84045.0,0.252865]
[1743196097316,0.00013311,84046.0,84045.0,0.255865]
[1743196097725,0.00013311,84046.0,84045.0,0.252865]
[1743196097922,0.00013311,84046.0,84045.0,0.249865]
[1743196098238,0.00013311,84046.0,84045.0,0.257865]
[1743196100219,0.00013311,84046.0,84045.0,0.382665]
[1743196100438,0.00013311,84046.0,84045.0,0.51146349]
[1743196101139,0.00013311,84046.0,84045.0,0.50746349]
[1743196101432,0.00013311,84046.0,84045.0,0.51180089]
[1743196101645,0.00030181,84046.0,84045.0,0.51180089]
[1743196102290,0.00030181,84046.0,84045.0,0.51865112]
[1743196102962,0.00030181,84046.0,84045.0,0.51465112]
[1743196103525,0.00030181,84046.0,84045.0,0.40039348]
[1743196103926,0.00030181,84046.0,84045.0,0.40539348]
[1743196104464,0.00030181,84046.0,84045.0,0.39085263]
[1743196104691,0.00030181,84046.0,84045.0,0.26605263]
[1743196106615,0.00030181,84046.0,84045.0,0.2592024]
[1743196109680,0.00030181,84046.0,84045.0,0.26605702]
[1743196109938,0.00030181,84046.0,84045.0,0.28059787]
[1743196110141,0.00030181,84046.0,84045.0,0.35689787]
[1743196110353,0.00030181,84046.0,84045.0,0.40539787]
[1743196110858,0.00030181,84046.0,84045.0,0.39639787]
[1743196111062,0.00030181,84046.0,84045.0,0.40639787]
[1743196111419,0.00030181,84046.0,84045.0,0.52065551]
[1743196112772,0.00030181,84046.0,84045.0,0.51065551]
[1743196113158,0.00030181,84046.0,84045.0,0.52065551]
[1743196118423,0.00030181,84046.0,84045.0,0.54476804]
[1743196121090,8.1e-07,84046.0,84045.0,0.54476804]
[1743196123791,8.1e-07,84046.0,84045.0,0.53791342]
[1743196125151,8.1e-07,84046.0,84045.0,0.67255342]
[1743196126969,8.1e-07,84046.0,84045.0,0.53791342]
[1743196127171,8.1e-07,84046.0,84045.0,0.67255342]
[1743196128538,8.1e-07,84046.0,84045.0,0.70191769]
[1743196128845,8.1e-07,84046.0,84045.0,0.67255342]
[1743196132198,8.1e-07,84046.0,84045.0,0.67941661]
[1743196135206,8.1e-07,84046.0,84045.0,0.71475739]
[1743196142282,8.1e-07,84046.0,84045.0,1.28135739]
[1743196143166,8.1e-07,84046.0,84045.0,1.14671739]
[1743196143367,8.1e-07,84046.0,84045.0,1.28131739]
[1743196144068,8.1e-07,84046.0,84045.0,1.20001739]
[1743196144397,8.1e-07,84046.0,84045.0,1.17590486]
[1743196145805,8.1e-07,84046.0,84045.0,1.13870089]
[1743196146020,8.1e-07,84046.0,84045.0,1.17592662]
[1743196146581,8.1e-07,84046.0,84045.0,1.04132662]
[1743196146790,8.1e-07,84046.0,84045.0,0.87856898]
[1743196147632,8.1e-07,84046.0,84045.0,0.88543856]
[1743196151065,8.1e-07,84046.0,84045.0,0.9996962]
[1743196151563,8.1e-07,84046.0,84045.0,1.0766962]
[1743196152031,8.1e-07,84046.0,84045.0,0.5100962]
[1743196156547,8.1e-07,84046.0,84045.0,0.50322662]
[1743196158154,8.1e-07,84046.0,84045.0,0.55182662]
[1743196158936,8.1e-07,84046.0,84045.0,0.54682662]
[1743196159491,8.1e-07,84046.0,84045.0,0.55282662]
[1743196160075,8.1e-07,84046.0,84045.0,0.54782662]
[1743196160423,8.1e-07,84046.0,84045.0,0.55282662]
[1743196160640,8.1e-07,84046.0,84045.0,0.58219089]
[1743196160898,8.1e-07,84046.0,84045.0,0.55282662]
[1743196164347,8.1e-07,84046.0,84045.0,0.54782662]
[1743196164548,8.1e-07,84046.0,84045.0,0.54182662]
[1743196164920,8.1e-07,84046.0,84045.0,0.54782662]
[1743196165494,8.1e-07,84046.0,84045.0,0.55382662]
[1743196169737,8.1e-07,84046.0,84045.0,0.56069758]
[1743196171954,8.1e-07,84046.0,84045.0,0.55382662]
[1743196179332,8.1e-07,84046.0,84045.0,0.29942813]
[1743196179645,8.1e-07,84046.0,84045.0,0.31396898]
[1743196179839,8.1e-07,84046.0,84045.0,0.2622024]
[1743196180055,8.1e-07,84046.0,84045.0,0.27674325]
[1743196182749,8.1e-07,84046.0,84045.0,0.42825983]
[1743196182981,8.1e-07,84046.0,84045.0,0.47210089]
[1743196183304,8.1e-07,84046.0,84045.0,0.5093599]
[1743196193953,8.1e-07,84046.0,84045.0,0.56143104]
[1743196194943,8.1e-07,84046.0,84045.0,0.55543104]
[1743196195169,8.1e-07,84046.0,84045.0,0.54943104]
[1743196195367,8.1e-07,84046.0,84045.0,0.55543104]
[1743196195531,8.1e-07,84046.0,84045.0,0.56143104]
[1743196195729,8.1e-07,84046.0,84045.0,0.57879531]
[1743196195932,8.1e-07,84046.0,84045.0,0.54943104]
[1743196196235,8.1e-07,84046.0,84045.0,0.55543104]
[1743196197380,8.1e-07,84046.0,84045.0,0.56143104]
[1743196201498,8.1e-07,84046.0,84045.0,0.55543104]
[1743196201706,8.1e-07,84046.0,84045.0,0.54943104]
[1743196201863,8.1e-07,84046.0,84045.0,0.56143104]
[1743196202203,8.1e-07,84046.0,84045.0,0.59079531]
[1743196202381,8.1e-07,84046.0,84045.0,0.56643104]
[1743196202964,8.1e-07,84046.0,84045.0,0.86643104]
[1743196203161,8.1e-07,84046.0,84045.0,0.88509404]
[1743196203790,0.0023376,84059.0,84058.0,0.249826]
[1743196203997,0.0023376,84059.0,84058.0,0.416878]
[1743196204166,0.0023376,84059.0,84058.0,0.37961899]
[1743196204590,0.0023376,84059.0,84058.0,0.38649013]
[1743196205002,0.0023376,84059.0,84058.0,0.39529407]
[1743196205373,0.0023376,84059.0,84058.0,0.40129407]
[1743196206911,0.0023376,84059.0,84058.0,0.40729407]
[1743196207319,0.0023376,84059.0,84058.0,0.40129407]
[1743196207900,0.0023376,84059.0,84058.0,0.40729407]
[1743196210763,0.0023376,84059.0,84058.0,0.26969164]
[1743196213036,0.0023376,84059.0,84058.0,0.2628205]
[1743196213233,0.0023376,84059.0,84058.0,0.26273555]
[1743196223262,0.02099899,84059.0,84058.0,0.26273555]
[1743196226227,0.0023376,84059.0,84058.0,0.26959737]
[1743196233977,0.02099889,84059.0,84058.0,0.26959737]
[1743196234336,0.0023376,84059.0,84058.0,0.26959737]
[1743196235012,0.0023376,84059.0,84058.0,0.26273555]
[1743196237115,0.02099879,84059.0,84058.0,0.26273555]
[1743196237313,0.0023376,84059.0,84058.0,0.26273555]
[1743196239000,0.0023376,84059.0,84058.0,0.39053555]
[1743196239219,6e-07,84059.0,84058.0,0.51933404]
[1743196239750,6e-07,84059.0,84058.0,0.51367164]
[1743196240295,6e-07,84059.0,84058.0,0.50767164]
[1743196241081,6e-07,84059.0,84058.0,0.51367164]
[1743196241500,6e-07,84059.0,84058.0,0.54373902]
[1743196242037,6e-07,84059.0,84058.0,0.53773902]
[1743196242239,6e-07,84059.0,84058.0,0.54373902]
[1743196243046,6e-07,84059.0,84058.0,0.56239902]
[1743196243403,6e-07,84059.0,84058.0,0.97489902]
[1743196248108,6.1e-07,84062.0,84061.0,0.249818]
[1743196248324,4.1e-07,84068.0,84067.0,0.39204085]
[1743196248513,4.1e-07,84068.0,84067.0,0.39803375]
[1743196249462,4.1e-07,84068.0,84067.0,0.64989139]
[1743196249591,4.1e-07,84068.0,84067.0,0.65675996]
[1743196250195,4.1e-07,84068.0,84067.0,0.66275996]
[1743196251210,4.1e-07,84068.0,84067.0,0.67374196]
[1743196251639,4.1e-07,84068.0,84067.0,0.67974196]
[1743196252384,4.1e-07,84068.0,84067.0,1.08624196]
[1743196252776,4.1e-07,84068.0,84067.0,0.94864196]
[1743196252936,4.1e-07,84068.0,84067.0,1.09204196]
[1743196255655,4.1e-07,84068.0,84067.0,1.08004196]
[1743196255863,4.1e-07,84068.0,84067.0,1.08604196]
[1743196256181,4.1e-07,84068.0,84067.0,1.09204196]
[1743196256414,4.1e-07,84068.0,84067.0,1.08004196]
[1743196256774,4.1e-07,84068.0,84067.0,1.08604196]
[1743196257820,4.1e-07,84068.0,84067.0,1.09204196]
[1743196258862,4.1e-07,84068.0,84067.0,1.09680896]
[1743196259122,4.1e-07,84068.0,84067.0,1.13390173]
[1743196259323,4.1e-07,84068.0,84067.0,1.163266]
[1743196259453,4.1e-07,84068.0,84067.0,1.09080896]
[1743196259658,4.1e-07,84068.0,84067.0,1.08480896]
[1743196259854,4.1e-07,84068.0,84067.0,1.09080896]
[1743196260857,4.1e-07,84068.0,84067.0,1.09680896]
[1743196261261,0.0003378,84073.0,84072.0,0.34562585]
[1743196261465,0.00047089,84073.0,84072.0,0.45988349]
[1743196262167,0.00047089,84073.0,84072.0,0.46465149]
[1743196262388,0.00047089,84073.0,84072.0,0.47065149]
[1743196262733,0.00047089,84073.0,84072.0,0.47665149]
[1743196264116,0.00047089,84073.0,84072.0,0.90700206]
[1743196265184,0.00047089,84073.0,84072.0,0.81116121]
[1743196265390,0.00047089,84073.0,84072.0,0.69690357]
[1743196265569,0.00047089,84073.0,84072.0,0.71144442]
[1743196269473,0.00047089,84073.0,84072.0,0.74707801]
[1743196270502,0.00047089,84073.0,84072.0,0.770874]
[1743196273113,8.9e-07,84073.0,84072.0,0.96643164]
[1743196273318,2.9e-07,84089.0,84088.0,0.26427885]
[1743196273511,2.9e-07,84089.0,84088.0,0.92203099]
[1743196273782,0.00044381,84089.0,84088.0,0.92203099]
[1743196274418,8.1e-07,84089.0,84088.0,0.92203099]
[1743196274759,8.1e-07,84089.0,84088.0,0.92703099]
[1743196275003,8.1e-07,84089.0,84088.0,0.93889956]
[1743196275215,8.1e-07,84089.0,84088.0,0.94805736]
[1743196275674,8.1e-07,84089.0,84088.0,0.95305736]
[1743196275818,8.1e-07,84089.0,84088.0,0.94805736]
[1743196276628,8.1e-07,84089.0,84088.0,0.95408717]
[1743196276828,8.1e-07,84089.0,84088.0,0.96608717]
[1743196277025,8.1e-07,84089.0,84088.0,0.96008717]
[1743196277421,8.2e-07,84103.0,84102.0,0.249696]
[1743196277707,8.6e-07,84103.0,84102.0,0.50849449]
[1743196278372,8.6e-07,84103.0,84102.0,0.53207287]
[1743196278579,8.6e-07,84103.0,84102.0,0.55096885]
[1743196278963,8.6e-07,84103.0,84102.0,0.96846885]
[1743196279317,8.6e-07,84103.0,84102.0,0.97446885]
[1743196280465,8.6e-07,84103.0,84102.0,0.95743904]
[1743196280826,8.6e-07,84103.0,84102.0,0.96343904]
[1743196281170,8.6e-07,84103.0,84102.0,0.95743904]
[1743196281606,8.6e-07,84103.0,84102.0,0.96343904]
[1743196281848,8.6e-07,84103.0,84102.0,1.26943904]
[1743196282044,8.6e-07,84103.0,84102.0,1.25743904]
[1743196282377,8.6e-07,84103.0,84102.0,1.26943904]
[1743196283802,8.6e-07,84103.0,84102.0,1.28043547]
[1743196286885,8.6e-07,84103.0,84102.0,1.29316247]
[1743196287124,8.6e-07,84103.0,84102.0,1.29349987]
[1743196287368,5.6e-07,84103.0,84102.0,1.29349987]
[1743196290389,0.002,84119.0,84117.0,0.249652]
[1743196290619,0.002,84119.0,84117.0,1.00472673]
[1743196291147,0.002,84119.0,84117.0,1.01373384]
[1743196291348,0.002,84119.0,84117.0,1.06113384]
[1743196291799,0.002,84119.0,84117.0,1.06713384]
[1743196292559,0.002,84119.0,84117.0,1.07313384]
[1743196292971,1e-07,84118.0,84117.0,1.08000241]
[1743196293215,1e-07,84118.0,84117.0,1.07400241]
[1743196293411,1e-07,84118.0,84117.0,1.08000241]
[1743196294437,1e-07,84119.0,84118.0,0.26918985]
[1743196294636,1e-07,84119.0,84118.0,0.38344749]
[1743196295724,1e-07,84119.0,84118.0,0.38944749]
[1743196296369,1e-07,84119.0,84118.0,0.80194693]
[1743196296971,1e-07,84119.0,84118.0,0.8148155]
[1743196299306,8e-07,84119.0,84118.0,0.8148155]
[1743196300083,8e-07,84119.0,84118.0,0.83919195]
[1743196300889,8e-07,84119.0,84118.0,0.85018838]
[1743196301694,8e-07,84119.0,84118.0,0.98102838]
[1743196307576,8e-07,84119.0,84118.0,1.01806833]
[1743196312256,8e-07,84119.0,84118.0,1.09336833]
[1743196312456,8e-07,84119.0,84118.0,1.09370573]
[1743196313107,8e-07,84119.0,84118.0,1.0827093]
[1743196320428,8e-07,84119.0,84118.0,1.1277093]
[1743196321195,8e-07,84119.0,84118.0,1.1327093]
[1743196321397,8e-07,84119.0,84118.0,0.9968693]
[1743196321597,0.0001688,84131.0,84130.0,0.249613]
[1743196321796,0.00028482,84131.0,84130.0,0.41643684]
[1743196322755,0.00028482,84131.0,84130.0,0.43518224]
[1743196322964,0.00028482,84131.0,84130.0,0.44118224]
[1743196324002,0.00028482,84131.0,84130.0,0.44718224]
[1743196325690,0.00028482,84131.0,84130.0,0.85968168]
[1743196329836,0.00028482,84131.0,84130.0,0.85368168]
[1743196330175,0.00028482,84131.0,84130.0,0.85968168]
[1743196330380,0.00028482,84131.0,84130.0,0.85368168]
[1743196330839,0.00028482,84131.0,84130.0,0.85968168]
[1743196331539,8.2e-07,84131.0,84130.0,0.85968168]
[1743196331741,8.2e-07,84131.0,84130.0,0.90598168]
[1743196332455,8.2e-07,84131.0,84130.0,0.89398168]
[1743196332828,8.2e-07,84131.0,84130.0,0.89998168]
[1743196333797,8.2e-07,84131.0,84130.0,0.90598168]
[1743196333947,8.2e-07,84131.0,84130.0,0.93534595]
[1743196334152,8.2e-07,84131.0,84130.0,0.90598168]
[1743196335834,0.00016952,84131.0,84130.0,0.90598168]
[1743196344515,0.00016952,84131.0,84130.0,0.89998168]
[1743196344765,0.00016952,84131.0,84130.0,0.90598168]
[1743196345167,0.00016952,84131.0,84130.0,0.89998168]
[1743196345588,0.00016952,84131.0,84130.0,0.90598168]
[1743196345813,0.00016952,84131.0,84130.0,0.89998168]
[1743196346058,0.00016952,84131.0,84130.0,0.90598168]
[1743196346351,0.00016952,84131.0,84130.0,0.9170033]
[1743196347807,0.00016952,84131.0,84130.0,0.89911311]
[1743196348054,0.00016952,84131.0,84130.0,0.89945051]
[1743196349030,0.00016952,84131.0,84130.0,0.92881478]
[1743196349251,0.00016952,84131.0,84130.0,0.89945051]
[1743196349697,0.00016952,84131.0,84130.0,0.90634151]
[1743196357055,0.00016952,84131.0,84130.0,0.91737099]
[1743196358346,0.01881326,84131.0,84130.0,0.91737099]
[1743196358764,0.00016952,84131.0,84130.0,0.91737099]
[1743196360498,0.00016952,84131.0,84130.0,0.90634151]
[1743196363895,0.00016952,84131.0,84130.0,0.99448151]
[1743196366204,0.00016952,84131.0,84130.0,0.86004151]
[1743196370490,0.00016952,84131.0,84130.0,0.94074151]
[1743196371797,0.00016952,84131.0,84130.0,0.93474151]
[1743196371999,0.00016952,84131.0,84130.0,0.92874151]
[1743196372301,0.00016952,84131.0,84130.0,0.93474151]
[1743196372860,0.00016952,84131.0,84130.0,0.94074151]
[1743196373547,0.00016952,84131.0,84130.0,0.97010578]
[1743196373757,0.00016952,84131.0,84130.0,0.94074151]
[1743196377756,0.00016952,84131.0,84130.0,1.07514151]
[1743196387548,0.00016952,84131.0,84130.0,0.86004151]
[1743196388079,0.00016952,84131.0,84130.0,0.73124302]
[1743196411454,0.00016952,84131.0,84130.0,0.94324151]
[1743196411657,0.00016952,84131.0,84130.0,0.98834151]